bitfinex-derivatives/quotes_SOLF0:USTF0_20260129
["timestamp","ask_amount","ask_price","bid_price","bid_amount"]
[1769697647351,3.48723647,121.54,121.47,3.52017155]
[1769697648057,3.48723647,121.54,121.47,10.94027155]
[1769697648653,410.342,121.57,121.45,7.4214]
[1769697648654,3.48723647,121.53,121.45,7.4214]
[1769697648955,3.48723647,121.53,121.45,10.94157155]
[1769697649351,3.48723647,121.51,121.42,3.52017155]
[1769697649957,3.48723647,121.5,121.42,3.52017155]
[1769697650349,10.90703647,121.49,121.41,7.4241]
[1769697651155,3.48723647,121.49,121.42,7.4236]
[1769697651457,3.48723647,121.49,121.41,3.52017155]
[1769697651658,115.37,121.54,121.43,3.52017155]
[1769697651659,3.48723647,121.52,121.43,3.52017155]
[1769697651862,3.48723647,121.52,121.45,7.4218]
[1769697653956,10.90493647,121.52,121.45,7.4218]
[1769697655446,3.43873942,121.51,121.43,10.94307155]
[1769697655654,3.43873942,121.51,121.43,3.52017155]
[1769697655961,3.43873942,121.5,121.43,10.94327155]
[1769697656155,3.43873942,121.5,121.43,7.4231]
[1769697656559,10.85833942,121.49,121.41,7.4238]
[1769697656953,10.85833942,121.49,121.4,3.25420267]
[1769697658363,10.85833942,121.49,121.42,7.4236]
[1769697659365,3.43873942,121.49,121.43,7.4231]
[1769697659566,3.43873942,121.51,121.44,3.25420267]
[1769697659964,3.43873942,121.51,121.46,7.4212]
[1769697660164,3.43873942,121.53,121.45,3.25420267]
[1769697660369,3.43873942,121.53,121.46,3.25420267]
[1769697661162,3.43873942,121.53,121.46,10.67500267]
[1769697661367,3.43873942,121.53,121.46,7.4208]
[1769697661562,3.43873942,121.53,121.43,118.72300267]
[1769697661968,3.43873942,121.53,121.46,7.4212]
[1769697662162,3.43873942,121.53,121.44,3.25420267]
[1769697662871,3.43873942,121.51,121.41,3.25420267]
[1769697663264,3.43873942,121.51,121.42,3.25420267]
[1769697663463,3.43873942,121.51,121.45,7.4219]
[1769697663770,3.43873942,121.51,121.42,118.73270267]
[1769697664070,3.43873942,121.5,121.44,7.4224]
[1769697664473,3.43873942,121.5,121.45,7.4219]
[1769697665968,10.85763942,121.5,121.43,7.4225]
[1769697666274,3.43873942,121.49,121.4,3.25420267]
[1769697666569,3.43873942,121.49,121.4,10.67850267]
[1769697666771,7.4207,121.48,121.4,3.25420267]
[1769697667371,10.85943942,121.48,121.4,3.25420267]
[1769697667673,7.4207,121.47,121.41,7.4243]
[1769697667862,10.85943942,121.47,121.38,118.77090267]
[1769697668063,10.85943942,121.47,121.39,3.25420267]
[1769697669363,10.85943942,121.47,121.39,10.67920267]
[1769697670268,10.85943942,121.47,121.4,7.4248]
[1769697670770,10.85943942,121.47,121.39,3.25420267]
[1769697671777,7.4215,121.46,121.4,7.4249]
[1769697671975,3.43873942,121.45,121.36,118.78360267]
[1769697672181,3.43873942,121.45,121.36,3.25420267]
[1769697672380,7.4226,121.44,121.37,7.4264]
[1769697672978,10.86063942,121.45,121.38,7.4261]
[1769697673178,3.43873942,121.45,121.38,7.4261]
[1769697674380,7.4227,121.44,121.38,7.4261]
[1769697674879,7.4232,121.43,121.36,10.68110267]
[1769697675377,3.43873942,121.42,121.36,7.4269]
[1769697675680,3.43873942,121.42,121.33,3.25420267]
[1769697676881,7.4244,121.41,121.33,3.25420267]
[1769697677380,3.43873942,121.42,121.35,7.4279]
[1769697677676,3.43873942,121.42,121.34,3.25420267]
[1769697678273,3.43873942,121.42,121.35,7.4275]
[1769697678474,3.43873942,121.42,121.32,3.25420267]
[1769697678980,7.4252,121.4,121.34,7.4286]
[1769697680074,3.43873942,121.42,121.35,3.25420267]
[1769697681174,7.4244,121.41,121.35,10.68200267]
[1769697681379,3.43873942,121.42,121.35,10.68200267]
[1769697681380,3.43873942,121.42,121.35,3.25420267]
[1769697681781,10.86303942,121.42,121.35,10.68220267]
[1769697681983,3.43873942,121.42,121.35,7.428]
[1769697682384,3.43873942,121.42,121.33,118.81840267]
[1769697682586,3.43873942,121.42,121.34,3.25420267]
[1769697683386,10.86243942,121.42,121.34,3.25420267]
[1769697683680,3.43873942,121.42,121.31,118.83620267]
[1769697683877,10.86383942,121.4,121.32,3.25420267]
[1769697684080,3.43873942,121.39,121.3,3.25420267]
[1769697684580,3.43873942,121.36,121.27,3.25420267]
[1769697684880,3.43873942,121.35,121.27,3.25420267]
[1769697685183,10.86813942,121.33,121.24,3.25420267]
[1769697686485,10.86813942,121.33,121.26,7.4334]
[1769697687887,10.7744782,121.32,121.24,10.68850267]
[1769697688388,3.3445782,121.32,121.26,7.4334]
[1769697689986,3.3445782,121.32,121.24,10.68860267]
[1769697690685,10.7745782,121.32,121.25,7.4338]
[1769697690985,3.3445782,121.35,121.25,3.39699919]
[1769697692178,3.3445782,121.35,121.26,3.39699919]
[1769697692379,3.3445782,121.35,121.28,3.45504513]
[1769697692579,3.41213011,121.38,121.28,3.45504513]
[1769697693286,10.83893011,121.37,121.3,7.4308]
[1769697693888,10.83893011,121.37,121.3,10.88584513]
[1769697694090,3.41213011,121.37,121.31,7.4304]
[1769697694595,3.41213011,121.4,121.34,7.4284]
[1769697694984,3.41213011,121.43,121.33,3.45504513]
[1769697695394,10.83593011,121.42,121.35,7.4277]
[1769697696084,115.4625,121.44,121.33,10.88374513]
[1769697696085,3.41213011,121.41,121.33,10.88374513]
[1769697696887,3.41213011,121.41,121.34,7.4286]
[1769697697088,7.4243,121.42,121.34,3.45504513]
[1769697697287,10.83643011,121.42,121.34,3.45504513]
[1769697697494,10.83663011,121.41,121.34,3.45504513]
[1769697697890,10.83663011,121.41,121.34,10.88354513]
[1769697699490,10.83663011,121.41,121.34,3.45504513]
[1769697700698,10.83663011,121.41,121.34,10.88334513]
[1769697701694,3.41213011,121.41,121.34,3.45504513]
[1769697701896,3.41213011,121.43,121.35,3.45504513]
[1769697702090,3.41213011,121.46,121.37,3.45504513]
[1769697702294,3.41213011,121.46,121.38,3.45504513]
[1769697703290,10.83373011,121.46,121.39,7.4252]
[1769697704295,10.83373011,121.46,121.38,3.45504513]
[1769697704296,7.4226,121.44,121.38,3.45504513]
[1769697704493,3.41213011,121.44,121.35,3.45504513]
[1769697704698,7.4232,121.43,121.36,7.4273]
[1769697704898,3.41213011,121.44,121.36,3.45504513]
[1769697706098,10.83463011,121.44,121.37,7.4266]
[1769697708500,115.4386,121.47,121.37,7.4266]
[1769697708501,7.4219,121.46,121.37,3.45504513]
[1769697708703,7.4219,121.46,121.38,3.45504513]
[1769697708899,3.41213011,121.44,121.37,7.4263]
[1769697710498,3.41213011,121.44,121.35,10.88264513]
[1769697711399,7.4239,121.42,121.35,10.88264513]
[1769697712404,3.41213011,121.4,121.33,7.4287]
[1769697712702,3.41213011,121.4,121.33,3.45504513]
[1769697713099,7.4244,121.41,121.34,7.4285]
[1769697713407,7.4244,121.41,121.34,10.88354513]
[1769697713903,10.83653011,121.41,121.34,10.88354513]
[1769697715105,3.41213011,121.4,121.32,7.4293]
[1769697715607,3.51741926,121.39,121.31,3.45504513]
[1769697717506,7.4269,121.37,121.31,10.88544513]
[1769697719211,7.4269,121.37,121.31,3.45504513]
[1769697719508,10.94351926,121.39,121.31,3.45504513]
[1769697719905,10.94351926,121.39,121.32,10.96713649]
[1769697720405,3.51741926,121.44,121.34,3.53743649]
[1769697721107,3.51741926,121.41,121.31,8.70906902]
[1769697721408,3.51741926,121.41,121.32,3.53743649]
[1769697721605,7.4261,121.39,121.32,10.96713649]
[1769697721804,3.51741926,121.4,121.32,3.53743649]
[1769697722307,7.4262,121.38,121.32,3.53743649]
[1769697723303,7.4262,121.38,121.32,10.96703649]
[1769697723614,3.51741926,121.38,121.29,3.53743649]
[1769697724012,3.51741926,121.38,121.29,10.96913649]
[1769697724313,3.51741926,121.38,121.3,3.53743649]
[1769697724508,7.4274,121.37,121.3,3.53743649]
[1769697725009,3.51741926,121.38,121.3,3.53743649]
[1769697725210,7.428,121.35,121.27,10.96973649]
[1769697725409,7.428,121.35,121.28,3.53743649]
[1769697725910,7.4295,121.33,121.25,3.53743649]
[1769697726110,3.51741926,121.33,121.25,3.53743649]
[1769697726708,3.51741926,121.36,121.27,3.53743649]
[1769697727112,7.4281,121.35,121.27,10.97023649]
[1769697727410,119.05911926,121.36,121.27,3.53743649]
[1769697727810,3.51741926,121.35,121.27,3.53743649]
[1769697728016,7.4294,121.33,121.27,3.53743649]
[1769697728410,3.51741926,121.35,121.27,3.53743649]
[1769697728611,10.94591926,121.35,121.27,10.97013649]
[1769697730117,7.4287,121.34,121.27,10.97013649]
[1769697731515,3.51741926,121.35,121.28,10.96953649]
[1769697733219,7.4287,121.34,121.28,3.53743649]
[1769697733714,3.51741926,121.35,121.28,10.96953649]
[1769697734517,7.4282,121.35,121.29,3.53743649]
[1769697734704,3.51741926,121.37,121.29,10.96893649]
[1769697735015,3.51741926,121.37,121.29,3.53743649]
[1769697736116,10.94481926,121.36,121.29,3.53743649]
[1769697736619,3.51741926,121.36,121.3,7.4311]
[1769697737221,3.51741926,121.36,121.3,10.96853649]
[1769697738808,10.94451926,121.37,121.3,10.96853649]
[1769697741322,7.4262,121.38,121.31,10.96783649]
[1769697741519,7.4262,121.38,121.31,3.53743649]
[1769697742320,7.4262,121.38,121.32,7.4298]
[1769697742515,7.4268,121.37,121.31,3.53743649]
[1769697742719,3.51741926,121.36,121.29,3.53743649]
[1769697743218,3.51741926,121.36,121.27,3.53743649]
[1769697743716,3.51741926,121.36,121.28,10.96963649]
[1769697744117,3.51741926,121.36,121.28,3.53743649]
[1769697744319,3.51741926,121.35,121.29,7.4314]
[1769697745217,10.94551926,121.35,121.28,10.96973649]
[1769697745619,10.94551926,121.35,121.28,13.00208204]
[1769697745924,10.94551926,121.35,121.29,3.61245165]
[1769697746320,115.5222,121.38,121.26,115.6287]
[1769697746321,7.4272,121.37,121.3,5.6447972]
[1769697746722,3.45350927,121.38,121.33,2.03234555]
[1769697747025,403.0216,121.42,121.31,3.61245165]
[1769697747026,2.03234555,121.39,121.32,2.03234555]
[1769697747218,2.03234555,121.39,121.32,9.46204555]
[1769697747623,3.45350927,121.38,121.32,11.04215165]
[1769697748024,7.4256,121.39,121.32,11.04215165]
[1769697748219,3.45350927,121.41,121.32,11.04215165]
[1769697748820,7.4256,121.39,121.32,11.04215165]
[1769697749117,10.87910927,121.39,121.32,11.04215165]
[1769697749323,3.45350927,121.39,121.32,3.61245165]
[1769697749626,7.4262,121.38,121.32,3.61245165]
[1769697750126,7.4262,121.38,121.32,11.04225165]
[1769697751424,7.4247,121.41,121.34,11.04095165]
[1769697751627,3.45350927,121.4,121.31,3.61245165]
[1769697751924,3.45350927,121.39,121.28,3.61245165]
[1769697752519,7.4274,121.36,121.3,10.80845981]
[1769697752724,3.45350927,121.39,121.3,10.80845981]
[1769697753131,3.27437484,121.38,121.31,10.80765981]
[1769697754336,10.70117484,121.37,121.31,3.37735981]
[1769697754924,10.70117484,121.37,121.31,10.80775981]
[1769697755330,7.4275,121.36,121.31,3.37735981]
[1769697756721,7.4275,121.36,121.29,3.37735981]
[1769697756927,3.27437484,121.35,121.29,3.37735981]
[1769697757624,3.27437484,121.35,121.27,3.37735981]
[1769697758429,3.27437484,121.34,121.27,3.37735981]
[1769697758837,3.27437484,121.32,121.25,3.37735981]
[1769697759228,3.27437484,121.29,121.23,3.37735981]
[1769697759428,3.27437484,121.28,121.22,2.68561306]
[1769697759629,3.27437484,121.27,121.18,7.66346972]
[1769697759929,3.27437484,121.24,121.15,11.04082953]
[1769697760240,3.27437484,121.24,121.15,3.37735981]
[1769697760926,3.27437484,121.24,121.16,3.37735981]
[1769697761130,3.27437484,121.26,121.16,3.37735981]
[1769697761427,3.27437484,121.26,121.16,1.00735981]
[1769697762227,3.27437484,121.26,121.17,115.7181]
[1769697762433,3.27437484,121.29,121.19,115.6994]
[1769697762835,3.27437484,121.29,121.21,7.4361]
[1769697763135,3.27437484,121.28,121.16,128.57108328]
[1769697763434,3.27437484,121.26,121.17,3.37735981]
[1769697763936,3.27437484,121.24,121.17,3.37735981]
[1769697765139,10.70937484,121.24,121.17,3.37735981]
[1769697765331,3.27437484,121.24,121.17,3.37735981]
[1769697766436,7.4358,121.23,121.17,3.37735981]
[1769697767840,3.27437484,121.24,121.17,3.37735981]
[1769697768630,10.70927484,121.24,121.17,3.37735981]
[1769697768837,3.27437484,121.23,121.14,3.37735981]
[1769697769341,3.27437484,121.26,121.16,3.37735981]
[1769697770146,3.27437484,121.26,121.17,10.81625981]
[1769697770341,3.27437484,121.26,121.18,3.37735981]
[1769697771340,3.27437484,121.26,121.19,3.37735981]
[1769697771847,10.70927484,121.24,121.16,10.81695981]
[1769697772444,7.4337,121.26,121.18,3.37735981]
[1769697772646,10.70807484,121.26,121.18,3.37735981]
[1769697772846,3.27437484,121.25,121.18,3.37735981]
[1769697773046,7.4337,121.26,121.19,3.37735981]
[1769697773240,10.70807484,121.26,121.19,3.37735981]
[1769697773446,7.4342,121.25,121.19,3.37735981]
[1769697774943,3.27437484,121.29,121.19,3.37735981]
[1769697775142,3.27437484,121.28,121.19,3.37735981]
[1769697775645,10.62121641,121.27,121.19,10.81505981]
[1769697776050,7.4336,121.26,121.19,10.81505981]
[1769697776255,3.18821641,121.25,121.17,10.63560008]
[1769697776751,10.62261641,121.25,121.18,3.19710008]
[1769697776950,3.18821641,121.25,121.18,10.63540008]
[1769697777153,10.62241641,121.25,121.18,3.19710008]
[1769697777854,3.18821641,121.24,121.16,3.19710008]
[1769697778046,10.62321641,121.24,121.17,7.439]
[1769697779149,10.62361641,121.23,121.16,3.19710008]
[1769697779349,3.18821641,121.23,121.16,3.19710008]
[1769697780350,7.436,121.22,121.16,3.19710008]
[1769697780854,10.62491641,121.21,121.13,3.19710008]
[1769697781352,7.4367,121.21,121.13,3.19710008]
[1769697781551,3.18821641,121.23,121.15,3.19710008]
[1769697782151,7.4361,121.22,121.15,10.63720008]
[1769697782457,3.18821641,121.26,121.16,3.19710008]
[1769697782850,3.18821641,121.26,121.18,3.19710008]
[1769697783050,3.18821641,121.29,121.2,3.19710008]
[1769697784155,3.18821641,121.32,121.23,3.19710008]
[1769697785252,3.18821641,121.32,121.24,3.19710008]
[1769697786351,3.18821641,121.32,121.24,10.63180008]
[1769697786753,3.18821641,121.32,121.24,3.19710008]
[1769697787360,3.18821641,121.32,121.26,7.4335]
[1769697787658,3.18821641,121.32,121.24,3.19710008]
[1769697787955,3.18821641,121.31,121.21,118.87600008]
[1769697788163,3.18821641,121.31,121.22,3.19710008]
[1769697788957,10.61941641,121.3,121.23,7.4351]
[1769697789962,10.61861641,121.32,121.24,3.19710008]
[1769697790759,3.18821641,121.31,121.24,3.19710008]
[1769697791458,3.18821641,121.31,121.21,3.19710008]
[1769697791658,3.18821641,121.3,121.21,3.19710008]
[1769697792355,3.18821641,121.29,121.22,7.4359]
[1769697792555,3.18821641,121.29,121.21,3.19710008]
[1769697793157,3.18821641,121.29,121.21,10.63310008]
[1769697793356,10.61991641,121.29,121.21,10.63310008]
[1769697793556,10.61991641,121.29,121.21,3.19710008]
[1769697794159,10.61991641,121.29,121.22,7.4359]
[1769697794965,10.61991641,121.29,121.21,3.19710008]
[1769697795765,3.18821641,121.27,121.18,118.90670008]
[1769697795957,3.18821641,121.27,121.19,3.19710008]
[1769697796159,3.18821641,121.27,121.2,10.63420008]
[1769697796665,3.18821641,121.27,121.2,3.19710008]
[1769697797466,3.18821641,121.27,121.21,7.4365]
[1769697797767,7.4323,121.28,121.21,10.63360008]
[1769697798069,10.62051641,121.28,121.21,10.63360008]
[1769697798568,10.62121641,121.27,121.19,10.63430008]
[1769697798766,10.62121641,121.27,121.19,3.19710008]
[1769697799561,3.18821641,121.27,121.2,7.4371]
[1769697799767,3.18821641,121.27,121.2,10.63420008]
[1769697800274,10.62111641,121.27,121.2,10.63420008]
[1769697801478,3.18821641,121.27,121.21,7.4365]
[1769697801677,3.18821641,121.27,121.2,3.19710008]
[1769697802179,3.18821641,121.27,121.2,10.63370008]
[1769697802571,7.4323,121.28,121.21,10.63360008]
[1769697802770,7.4323,121.28,121.21,3.19710008]
[1769697803479,10.62051641,121.28,121.21,3.19710008]
[1769697804184,3.18821641,121.28,121.21,3.19710008]
[1769697804578,3.18821641,121.28,121.22,7.436]
[1769697804776,3.18821641,121.32,121.22,3.19710008]
[1769697804978,3.18821641,121.31,121.22,3.19710008]
[1769697805182,3.18821641,121.3,121.2,10.63370008]
[1769697805369,11.03253415,121.28,121.2,3.19710008]
[1769697805574,2.03516688,121.27,121.2,5.23226696]
[1769697805882,13.06770103,121.28,121.2,5.23226696]
[1769697806084,13.06770103,121.28,121.21,3.50935198]
[1769697806378,13.06770103,121.28,121.21,10.94565198]
[1769697806970,13.06770103,121.28,121.22,7.436]
[1769697807986,11.03253415,121.28,121.22,7.436]
[1769697808184,3.60013415,121.28,121.22,7.436]
[1769697808680,5.63530103,121.3,121.23,2.03516688]
[1769697810283,13.06650103,121.3,121.24,7.4347]
[1769697810478,13.06650103,121.3,121.22,3.50935198]
[1769697811381,11.03133415,121.3,121.23,7.4353]
[1769697811683,2.03516688,121.29,121.23,7.4353]
[1769697811873,13.06650103,121.3,121.23,7.4353]
[1769697812076,3.29634023,121.29,121.23,7.4353]
[1769697812277,3.29634023,121.29,121.25,7.4341]
[1769697812487,3.29634023,121.33,121.26,3.38027264]
[1769697812680,3.29634023,121.33,121.26,5.41543952]
[1769697813588,3.29634023,121.33,121.26,3.38027264]
[1769697814784,3.29634023,121.32,121.26,7.433]
[1769697815681,3.29634023,121.32,121.27,7.4329]
[1769697817384,3.29634023,121.32,121.26,7.4335]
[1769697819588,3.29634023,121.32,121.24,3.38027264]
[1769697820487,3.29634023,121.32,121.27,7.4328]
[1769697820691,7.4293,121.33,121.27,7.4328]
[1769697821283,10.72504023,121.34,121.26,3.38027264]
[1769697821592,3.29634023,121.34,121.27,3.38027264]
[1769697821790,330.3616985,121.37,121.28,3.38027264]
[1769697821986,3.29634023,121.36,121.28,3.38027264]
[1769697823183,3.29634023,121.36,121.28,10.81197264]
[1769697823184,7.428,121.35,121.28,10.81197264]
[1769697824596,3.29634023,121.36,121.29,7.4313]
[1769697824796,3.29634023,121.36,121.28,3.38027264]
[1769697825490,3.29634023,121.36,121.31,7.4303]
[1769697830290,394.0228,121.4,121.31,3.38027264]
[1769697830291,281.81634023,121.4,121.31,3.38027264]
[1769697830601,10.72134023,121.4,121.31,3.38027264]
[1769697830801,10.72134023,121.4,121.29,123.26506972]
[1769697830998,10.72134023,121.4,121.13,347.2715]
[1769697830999,3.29634023,121.31,121.16,7.68099155]
[1769697831298,3.29634023,121.31,121.05,20.47563181]
[1769697831299,115.6826,121.21,121.05,115.8257]
[1769697831595,115.7206,121.17,121.05,7.446]
[1769697831800,115.739,121.15,121.0,121.06755661]
[1769697832103,115.739,121.15,121.0,5.18685661]
[1769697832104,115.7577,121.13,121.0,5.18685661]
[1769697832303,115.7787,121.11,120.97,121.08955661]
[1769697832499,115.7863,121.1,120.97,5.18685661]
[1769697832701,115.7958,121.09,120.96,120.6562094]
[1769697832894,115.815,121.07,120.97,21.9106325]
[1769697833599,5.18685661,121.08,120.97,21.9106325]
[1769697833794,5.18685661,121.12,120.99,21.9106325]
[1769697834108,7.4388,121.18,121.04,21.9106325]
[1769697834300,401.59055661,121.19,121.04,21.9106325]
[1769697834495,115.7391,121.15,121.04,21.9106325]
[1769697834700,5.18685661,121.13,121.04,21.9106325]
[1769697835205,5.18685661,121.15,121.04,21.9106325]
[1769697835499,5.18685661,121.17,121.05,21.9106325]
[1769697835710,29.86685661,121.17,121.05,21.9106325]
[1769697835996,5.18685661,121.17,121.06,21.9106325]
[1769697836406,128.35025661,121.17,121.06,21.9106325]
[1769697837106,5.18685661,121.18,121.06,145.1784325]
[1769697837402,5.18685661,121.18,121.07,115.8138]
[1769697837602,288.1379,121.19,121.06,115.8224]
[1769697837603,280.7,121.19,121.1,137.6957325]
[1769697838204,280.7,121.19,121.1,29.3535325]
[1769697838797,280.7,121.19,121.1,145.1385325]
[1769697838992,115.6515,121.25,121.13,21.9106325]
[1769697838993,7.4343,121.25,121.13,21.9106325]
[1769697839193,236.39525661,121.3,121.13,21.9106325]
[1769697839194,286.64685661,121.24,121.13,21.9106325]
[1769697840000,288.08327053,121.24,121.13,21.9106325]
[1769697840597,5.18685661,121.24,121.15,137.6466325]
[1769697840794,5.18685661,121.27,121.16,137.6345325]
[1769697840993,6.62303341,121.27,121.16,137.6345325]
[1769697842006,6.62303341,121.27,121.16,145.0738325]
[1769697842304,6.62303341,121.27,121.16,29.3499325]
[1769697842502,6.62303341,121.27,121.16,21.9106325]
[1769697842700,122.24733341,121.27,121.16,21.9106325]
[1769697843303,5.18685661,121.24,121.14,123.1877]
[1769697843813,5.18685661,121.26,121.17,115.7176]
[1769697844007,1.4361768,121.27,121.18,137.6200325]
[1769697844308,301.47039637,121.29,121.18,21.9106325]
[1769697844607,185.86279637,121.29,121.18,21.9106325]
[1769697845309,7.4327,121.28,121.18,21.9106325]
[1769697845703,5.1952928,121.27,121.18,21.9106325]
[1769697846010,5.1952928,121.24,121.15,29.3506325]
[1769697846505,5.1952928,121.24,121.16,7.4393]
[1769697846807,24.81,121.28,121.17,21.9106325]
[1769697847009,5.1952928,121.28,121.18,21.9106325]
[1769697847311,5.1952928,121.28,121.18,29.3486325]
[1769697849610,188.10783976,121.29,121.2,21.9106325]
[1769697849907,179.24,121.29,121.2,21.9106325]
[1769697850316,186.6719,121.29,121.2,21.9106325]
[1769697851409,179.24,121.29,121.2,21.9106325]
[1769697851617,294.849,121.29,121.2,21.9106325]
[1769697852421,7.4331,121.27,121.2,21.9106325]
[1769697855713,7.4331,121.27,121.17,21.9106325]
[1769697855915,24.81,121.35,121.22,18.1940825]
[1769697856110,115.5478,121.35,121.23,18.1940825]
[1769697856311,116.98296991,121.35,121.23,18.1940825]
[1769697856511,7.4294,121.33,121.24,18.1940825]
[1769697856806,115.5593,121.34,121.24,18.1940825]
[1769697857005,7.43,121.32,121.24,18.1940825]
[1769697857611,396.9863,121.38,121.25,18.1940825]
[1769697858419,7.4281,121.35,121.28,18.1940825]
[1769697859617,396.9863,121.38,121.28,18.1940825]
[1769697860115,115.5293,121.37,121.28,18.1940825]
[1769697860317,7.4282,121.35,121.28,18.1940825]
[1769697861609,7.4287,121.34,121.28,18.1940825]
[1769697862010,115.5293,121.37,121.28,18.1940825]
[1769697862415,115.5293,121.37,121.24,427.3294]
[1769697862416,115.5528,121.35,121.25,18.1940825]
[1769697862615,115.5384,121.36,121.25,18.1940825]
[1769697863321,7.4292,121.34,121.25,18.1940825]
[1769697864015,7.4292,121.34,121.22,115.6691]
[1769697864016,7.4293,121.33,121.26,18.1940825]
[1769697864913,7.43,121.32,121.26,18.1940825]
[1769697865313,115.5477,121.35,121.26,18.1940825]
[1769697865514,115.5293,121.37,121.27,18.1940825]
[1769697866320,7.4282,121.35,121.27,18.1940825]
[1769697866522,398.42102614,121.38,121.26,7.4334]
[1769697866523,282.89472614,121.38,121.29,18.1940825]
[1769697866918,7.4273,121.37,121.29,18.1940825]
[1769697867122,282.89472614,121.38,121.29,18.1940825]
[1769697868019,7.4275,121.36,121.29,18.1940825]
[1769697868319,282.89472614,121.38,121.29,18.1940825]
[1769697868320,398.41722614,121.38,121.29,18.1940825]
[1769697869529,7.428,121.35,121.29,18.1940825]
[1769697870429,281.46,121.38,121.29,18.1940825]
[1769697870826,281.46,121.38,121.31,18.1940825]
[1769697871227,7.4269,121.37,121.31,18.1940825]
[1769697871528,281.46,121.38,121.31,18.1940825]
[1769697871725,7.4275,121.36,121.27,18.1940825]
[1769697872026,396.9826,121.38,121.29,18.1940825]
[1769697873528,7.4281,121.35,121.29,18.1940825]
[1769697879722,281.46,121.38,121.3,18.1940825]
[1769697880129,7.4274,121.37,121.3,25.6249825]
[1769697880427,281.46,121.38,121.3,18.1940825]
[1769697881429,7.4276,121.36,121.3,18.1940825]
[1769697883332,24.81,121.42,121.31,18.1940825]
[1769697883533,140.2938,121.42,121.31,18.1940825]
[1769697883728,141.72808265,121.42,121.31,18.1940825]
[1769697884128,115.4912,121.41,121.33,18.1940825]
[1769697885436,7.4263,121.38,121.33,18.1940825]
[1769697887339,7.4256,121.39,121.33,18.1940825]
[1769697887728,115.4912,121.41,121.33,18.1940825]
[1769697889342,7.4263,121.38,121.33,18.1940825]
[1769697889541,116.91808265,121.42,121.33,25.6232825]
[1769697890042,115.4435,121.46,121.36,18.1940825]
[1769697890043,120.6570928,121.45,121.36,18.1940825]
[1769697890235,405.9570928,121.45,121.36,18.1940825]
[1769697890436,407.39096177,121.45,121.36,18.1940825]
[1769697890640,7.4243,121.42,121.36,18.1940825]
[1769697891243,115.4623,121.44,121.36,18.1940825]
[1769697891644,7.4238,121.42,121.37,18.1940825]
[1769697892740,115.4621,121.44,121.35,18.1940825]
[1769697893345,115.4621,121.44,121.36,18.1940825]
[1769697894445,7.4246,121.41,121.36,18.1940825]
[1769697894644,115.4852,121.42,121.33,18.1940825]
[1769697894946,7.4263,121.38,121.33,18.1940825]
[1769697895243,115.5002,121.4,121.33,18.1940825]
[1769697895448,7.4267,121.38,121.33,18.1940825]
[1769697896040,120.7056928,121.39,121.26,426.3603928]
[1769697896749,120.7056928,121.39,121.22,115.6705]
[1769697896750,115.5285,121.37,121.23,115.6558]
[1769697897045,5.1952928,121.36,121.24,115.6513]
[1769697897640,115.55,121.35,121.25,7.4337]
[1769697898041,115.55,121.35,121.26,11.5911325]
[1769697898446,120.7652928,121.33,121.21,11.5911325]
[1769697899143,7.4311,121.3,121.24,11.5911325]
[1769697899747,7.4321,121.29,121.24,11.5911325]
[1769697900349,120.7938928,121.3,121.19,7.4375]
[1769697900647,115.6155,121.28,121.15,115.738]
[1769697900853,7.4349,121.24,121.15,7.44]
[1769697901345,7.4356,121.23,121.13,115.7562]
[1769697901548,5.1952928,121.24,121.14,115.7455]
[1769697901746,115.6377,121.26,121.14,115.7455]
[1769697902052,7.4337,121.26,121.17,7.4388]
[1769697902448,7.4337,121.26,121.18,5.7955825]
[1769697903454,7.4337,121.26,121.18,3.3955825]
[1769697903855,7.4343,121.25,121.18,3.3955825]
[1769697905252,7.4351,121.24,121.18,3.3955825]
[1769697905955,115.6435,121.25,121.18,3.3955825]
[1769697906149,1.43151247,121.23,121.12,12.6371928]
[1769697906354,1.43151247,121.23,121.12,7.4419]
[1769697907351,7.4363,121.22,121.12,7.4419]
[1769697908060,7.4368,121.21,121.12,7.4419]
[1769697908260,7.4368,121.21,121.13,3.3797884]
[1769697908957,8.86721247,121.23,121.14,3.3797884]
[1769697909158,1.43151247,121.23,121.14,3.3797884]
[1769697910456,7.4362,121.22,121.14,3.3797884]
[1769697914057,7.4374,121.2,121.14,3.3797884]
[1769697915055,7.4379,121.19,121.14,3.3797884]
[1769697915257,1.43151247,121.2,121.09,3.3797884]
[1769697915459,1.43151247,121.17,121.09,3.3797884]
[1769697915655,1.43151247,121.2,121.1,3.3797884]
[1769697916155,7.4379,121.19,121.11,3.3797884]
[1769697917450,7.4379,121.19,121.12,3.3797884]
[1769697921568,9.47585237,121.19,121.12,5.41774077]
[1769697922865,7.4384,121.18,121.12,5.41774077]